fUST/lending_fUST_20250221
["ID","MTS","AMOUNT","RATE_DAILY","PERIOD"]
[353878927,1740108653871,-500.0,0.00014767,2]
[353878928,1740108653881,-1658.62,0.00014767,2]
[353878929,1740108653890,-1964.65,0.00014767,2]
[353878930,1740108653900,-1132.84,0.00014767,2]
[353878931,1740108653909,-6657.01,0.00014767,2]
[353878932,1740108653918,-1063.8,0.00014767,2]
[353878933,1740108653927,-521.20982767,0.00014767,2]
[353878934,1740108653937,-899.06,0.00014767,2]
[353878935,1740108653946,-500.0,0.00014767,2]
[353878936,1740108653956,-2965.06,0.00014767,2]
[353878937,1740108653965,-1893.75,0.00014767,2]
[353878938,1740108653975,-12368.39,0.00014767,2]
[353878939,1740108653984,-29817.62,0.00014767,2]
[353878940,1740108653993,-1155.97,0.00014767,2]
[353878941,1740108654003,-579.65,0.00014767,2]
[353878942,1740108654011,-2626.88,0.00014767,2]
[353878943,1740108654021,-1498.22,0.00014767,2]
[353878944,1740108654030,-915.53,0.00014767,2]
[353878945,1740108654040,-5183.19,0.00014767,2]
[353878946,1740108654050,-1107.5,0.00014767,2]
[353878947,1740108654061,-950.54,0.00014767,2]
[353878948,1740108654070,-500.0,0.00014767,2]
[353878949,1740108654080,-2828.99,0.00014767,2]
[353878950,1740108654090,-2987.19,0.00014767,2]
[353878951,1740108654099,-1569.7,0.00014767,2]
[353878952,1740108654108,-712.21,0.00014767,2]
[353878953,1740108654118,-702.91,0.00014767,2]
[353878954,1740108654128,-1013.92,0.00014767,2]
[353878955,1740108654137,-535.78,0.00014767,2]
[353878956,1740108654147,-500.0,0.00014767,2]
[353878957,1740108654157,-838.68,0.00014767,2]
[353878958,1740108654166,-500.0,0.00014767,2]
[353878959,1740108654176,-518.65,0.00014767,2]
[353878960,1740108654185,-2041.33,0.00014767,2]
[353878961,1740108654194,-1636.13,0.00014767,2]
[353878962,1740108654203,-500.0,0.00014767,2]
[353878963,1740108654213,-500.0,0.00014767,2]
[353878964,1740108654222,-500.0,0.00014767,2]
[353878965,1740108654231,-4589.01,0.00014767,2]
[353878966,1740108654241,-584.08,0.00014767,2]
[353878967,1740108654251,-1616.94,0.00014767,2]
[353878968,1740108654261,-1442.95,0.00014767,2]
[353878969,1740108654270,-500.0,0.00014767,2]
[353878970,1740108654279,-500.0,0.00014767,2]
[353878971,1740108654289,-1864.66,0.00014767,2]
[353878972,1740108654298,-709.19,0.00014767,2]
[353878973,1740108654308,-500.0,0.00014767,2]
[353878974,1740108654317,-606.11449744,0.00014802,2]
[353878975,1740108654327,-11886.80580218,0.00014837,2]
[353878976,1740108654336,-996.48,0.00014849,2]
[353878977,1740108654346,-312.56967895,0.00014849,2]
[353878978,1740108654355,-500.0,0.00014849,2]
[353878979,1740108654365,-611.56,0.00014849,2]
[353878980,1740108654374,-344.4147945,0.00014849,2]
[353878981,1740108654382,-782.52,0.00014849,2]
[353878982,1740108654392,-500.0,0.00014849,2]
[353878983,1740108654401,-500.0,0.00014849,2]
[353878984,1740108654411,-500.0,0.00014849,2]
[353878985,1740108654420,-500.0,0.00014849,2]
[353878986,1740108654429,-500.0,0.00014849,2]
[353878987,1740108654439,-924.65,0.00014849,2]
[353878988,1740108654449,-562.95,0.00014849,2]
[353878989,1740108654541,-500.0,0.00014849,2]
[353878990,1740108654551,-815.85,0.00014849,2]
[353878991,1740108654560,-500.0,0.00014849,2]
[353878992,1740108654571,-690.17,0.00014849,2]
[353878993,1740108654580,-616.17,0.00014849,2]
[353878994,1740108654590,-500.0,0.00014849,2]
[353878995,1740108654599,-14084.38,0.00014849,2]
[353878996,1740108654611,-500.0,0.00014849,2]
[353878997,1740108654620,-2002.51,0.00014849,2]
[353878998,1740108654630,-614.74,0.00014849,2]
[353878999,1740108654638,-500.0,0.00014849,2]
[353879000,1740108654648,-1658.62,0.00014849,2]
[353879001,1740108654658,-1964.65,0.00014849,2]
[353879002,1740108654668,-1132.84,0.00014849,2]
[353879003,1740108654678,-6657.01,0.00014849,2]
[353879004,1740108654687,-1063.8,0.00014849,2]
[353879005,1740108654697,-899.06,0.00014849,2]
[353879006,1740108654707,-508.37035668,0.00014849,2]
[353879007,1740108654716,-2965.06,0.00014849,2]
[353879008,1740108654726,-1893.75,0.00014849,2]
[353879009,1740108654735,-12368.39,0.00014849,2]
[353879010,1740108654745,-29817.62,0.00014849,2]
[353879011,1740108654754,-1155.97,0.00014849,2]
[353879012,1740108654764,-579.65,0.00014849,2]
[353879013,1740108654774,-2626.88,0.00014849,2]
[353879014,1740108654783,-1498.22,0.00014849,2]
[353879015,1740108654792,-915.53,0.00014849,2]
[353879016,1740108654802,-5183.19,0.00014849,2]
[353879017,1740108654812,-1107.5,0.00014849,2]
[353879018,1740108654821,-950.54,0.00014849,2]
[353879019,1740108654830,-500.0,0.00014849,2]
[353879020,1740108654840,-2828.99,0.00014849,2]
[353879021,1740108654849,-2987.19,0.00014849,2]
[353879022,1740108654858,-1569.7,0.00014849,2]
[353879023,1740108654868,-712.21,0.00014849,2]
[353879024,1740108654878,-702.91,0.00014849,2]
[353879025,1740108654888,-1013.92,0.00014849,2]
[353879026,1740108654898,-535.78,0.00014849,2]
[353879027,1740108654908,-443.10445159,0.00014849,2]
[353879028,1740108654918,-838.68,0.00014849,2]
[353879029,1740108654927,-500.0,0.00014849,2]
[353879030,1740108654936,-518.65,0.00014849,2]
[353879031,1740108654946,-2041.33,0.00014849,2]
[353879032,1740108654956,-1636.13,0.00014849,2]
[353879033,1740108654966,-636.34537082,0.00014849,2]
[353879034,1740108654975,-507.4301472,0.00014849,2]
[353879035,1740108654985,-500.0,0.00014849,2]
[353879036,1740108654995,-4589.01,0.00014849,2]
[353879037,1740108655004,-584.08,0.00014849,2]
[353879038,1740108655014,-1616.94,0.00014849,2]
[353879039,1740108655024,-1442.95,0.00014849,2]
[353879040,1740108655033,-374.74986051,0.00014849,2]
[353879041,1740108655045,-500.0,0.00014849,2]
[353879042,1740108655055,-1864.66,0.00014849,2]
[353879043,1740108655064,-709.19,0.00014849,2]
[353879044,1740108655074,-500.0,0.00014849,2]
[353879045,1740108655083,-160.0,0.00014853,6]
[353879046,1740108655092,-500.0,0.00014873,2]
[353879047,1740108655102,-500.5595125,0.00014873,2]
[353879048,1740108655111,-500.44648934,0.00014873,2]
[353879049,1740108655120,-29003.53926951,0.00014879,2]
[353879050,1740108655130,-161.522347,0.00014879,2]
[353879051,1740108655139,-161.522347,0.00014879,2]
[353879052,1740108655148,-151.0,0.00014879,2]
[353879053,1740108655157,-151.0,0.00014879,2]
[353879054,1740108655166,-4903.16137323,0.00014899,2]
[353879055,1740108655322,-23116.93501191,0.00014899,2]
[353879056,1740108655331,-156.168,0.000149,2]
[353879057,1740108655340,-156.168,0.000149,2]
[353879058,1740108655350,-151.0,0.000149,2]
[353879059,1740108655359,-151.0,0.000149,2]
[353879060,1740108655369,-212.750623,0.000149,2]
[353879061,1740108655378,-212.750623,0.000149,2]
[353879062,1740108655388,-151.0,0.000149,2]
[353879063,1740108655396,-151.0,0.000149,2]
[353879064,1740108655406,-161.522347,0.000149,2]
[353879065,1740108655415,-161.522347,0.000149,2]
[353879066,1740108655424,-564333.829141,0.000149,2]
[353879067,1740108655433,-151.0,0.000149,2]
[353879068,1740108655442,-151.0,0.000149,2]
[353879069,1740108655451,-420.0,0.00014901,2]
[353879070,1740108655460,-996.48,0.00014931,2]
[353879071,1740108655469,-500.0,0.00014931,2]
[353879072,1740108655478,-611.56,0.00014931,2]
[353879073,1740108655487,-782.52,0.00014931,2]
[353879074,1740108655496,-500.0,0.00014931,2]
[353879075,1740108655506,-500.0,0.00014931,2]
[353879076,1740108655514,-500.0,0.00014931,2]
[353879077,1740108655524,-500.0,0.00014931,2]
[353879078,1740108655536,-500.0,0.00014931,2]
[353879079,1740108655545,-924.65,0.00014931,2]
[353879080,1740108655554,-562.95,0.00014931,2]
[353879081,1740108655566,-500.0,0.00014931,2]
[353879082,1740108655577,-815.85,0.00014931,2]
[353879083,1740108655586,-500.0,0.00014931,2]
[353879084,1740108655596,-690.17,0.00014931,2]
[353879085,1740108655605,-616.17,0.00014931,2]
[353879086,1740108655614,-500.0,0.00014931,2]
[353879087,1740108655624,-14084.38,0.00014931,2]
[353879088,1740108655633,-422.71901577,0.00014931,2]
[353879089,1740108655642,-2002.51,0.00014931,2]
[353879090,1740108655652,-614.74,0.00014931,2]
[353879091,1740108655661,-500.0,0.00014931,2]
[353879092,1740108655671,-1658.62,0.00014931,2]
[353879093,1740108655680,-1964.65,0.00014931,2]
[353879094,1740108655690,-1132.84,0.00014931,2]
[353879095,1740108655700,-6657.01,0.00014931,2]
[353879096,1740108655710,-1063.8,0.00014931,2]
[353879097,1740108655720,-899.06,0.00014931,2]
[353879098,1740108655729,-2965.06,0.00014931,2]
[353879099,1740108655738,-1893.75,0.00014931,2]
[353879100,1740108655747,-12368.39,0.00014931,2]
[353879101,1740108655756,-29817.62,0.00014931,2]
[353879102,1740108655766,-1155.97,0.00014931,2]
[353879103,1740108655775,-579.65,0.00014931,2]
[353879104,1740108655784,-2626.88,0.00014931,2]
[353879105,1740108655794,-1498.22,0.00014931,2]
[353879106,1740108655803,-915.53,0.00014931,2]
[353879107,1740108655812,-5183.19,0.00014931,2]
[353879108,1740108655821,-1107.5,0.00014931,2]
[353879109,1740108655830,-950.54,0.00014931,2]
[353879110,1740108655839,-500.0,0.00014931,2]
[353879111,1740108655849,-500.0,0.00014931,2]
[353879112,1740108655858,-299.64657635,0.00014931,2]
[353879113,1740108655867,-500.0,0.00014931,2]
[353879114,1740108655878,-299.73452681,0.00014931,2]
[353879115,1740108655887,-216.01243458,0.00014931,2]
[353879116,1740108655896,-2828.99,0.00014931,2]
[353879117,1740108655905,-2987.19,0.00014931,2]
[353879118,1740108655914,-1569.7,0.00014931,2]
[353879119,1740108655924,-712.21,0.00014931,2]
[353879120,1740108655934,-702.91,0.00014931,2]
[353879121,1740108655943,-1013.92,0.00014931,2]
[353879122,1740108655953,-535.78,0.00014931,2]
[353879123,1740108655962,-838.68,0.00014931,2]
[353879124,1740108655971,-500.0,0.00014931,2]
[353879125,1740108655980,-518.65,0.00014931,2]
[353879126,1740108655990,-2041.33,0.00014931,2]
[353879127,1740108656001,-1636.13,0.00014931,2]
[353879128,1740108656010,-500.0,0.00014931,2]
[353879129,1740108656021,-500.0,0.00014931,2]
[353879130,1740108656031,-4589.01,0.00014931,2]
[353879131,1740108656042,-764.0,0.00014931,2]
[353879132,1740108656137,-584.08,0.00014931,2]
[353879133,1740108656147,-1616.94,0.00014931,2]
[353879134,1740108656158,-514.0,0.00014931,2]
[353879135,1740108656167,-1442.95,0.00014931,2]
[353879136,1740108656178,-150.18,0.00014931,2]
[353879137,1740108656188,-500.0,0.00014931,2]
[353879138,1740108656197,-500.0,0.00014931,2]
[353879139,1740108656207,-1864.66,0.00014931,2]
[353879140,1740108656217,-500.0,0.00014931,2]
[353879141,1740108656227,-709.19,0.00014931,2]
[353879142,1740108656237,-500.0,0.00014931,2]
[353879143,1740108656246,-9044.7251568,0.00014995,5]
[353879144,1740108656256,-3000.0,0.00014995,2]
[353879145,1740108656265,-55145.9122492,0.00015013,5]
[353879146,1740108656275,-996.48,0.00015013,2]
[353879147,1740108656285,-500.0,0.00015013,2]
[353879148,1740108656294,-611.56,0.00015013,2]
[353879149,1740108656303,-782.52,0.00015013,2]
[353879150,1740108656314,-635.77224408,0.00015013,2]
[353879151,1740108656323,-500.0,0.00015013,2]
[353879152,1740108656333,-500.0,0.00015013,2]
[353879153,1740108656343,-394.11054003,0.00015013,2]
[353879154,1740108656352,-500.0,0.00015013,2]
[353879155,1740108656362,-924.65,0.00015013,2]
[353879156,1740108656371,-562.95,0.00015013,2]
[353879157,1740108656381,-500.0,0.00015013,2]
[353879158,1740108656391,-815.85,0.00015013,2]
[353879159,1740108656401,-500.0,0.00015013,2]
[353879160,1740108656410,-690.17,0.00015013,2]
[353879161,1740108656421,-616.17,0.00015013,2]
[353879162,1740108656430,-500.0,0.00015013,2]
[353879163,1740108656440,-14084.38,0.00015013,2]
[353879164,1740108656449,-2002.51,0.00015013,2]
[353879165,1740108656459,-614.74,0.00015013,2]
[353879166,1740108656469,-500.0,0.00015013,2]
[353879167,1740108656479,-1658.62,0.00015013,2]
[353879168,1740108656489,-1964.65,0.00015013,2]
[353879169,1740108656501,-1132.84,0.00015013,2]
[353879170,1740108656510,-6657.01,0.00015013,2]
[353879171,1740108656519,-1063.8,0.00015013,2]
[353879172,1740108656530,-899.06,0.00015013,2]
[353879173,1740108656541,-2965.06,0.00015013,2]
[353879174,1740108656551,-1893.75,0.00015013,2]
[353879175,1740108656560,-12368.39,0.00015013,2]
[353879176,1740108656571,-29817.62,0.00015013,2]
[353879177,1740108656581,-1155.97,0.00015013,2]
[353879178,1740108656591,-579.65,0.00015013,2]
[353879179,1740108656601,-2626.88,0.00015013,2]
[353879180,1740108656614,-1498.22,0.00015013,2]
[353879181,1740108656626,-915.53,0.00015013,2]
[353879182,1740108656636,-5183.19,0.00015013,2]
[353879183,1740108656646,-1107.5,0.00015013,2]
[353879184,1740108656658,-950.54,0.00015013,2]
[353879185,1740108656668,-500.0,0.00015013,2]
[353879186,1740108656677,-2828.99,0.00015013,2]
[353879187,1740108656687,-2987.19,0.00015013,2]
[353879188,1740108656696,-1569.7,0.00015013,2]
[353879189,1740108656707,-712.21,0.00015013,2]
[353879190,1740108656718,-702.91,0.00015013,2]
[353879191,1740108656731,-1013.92,0.00015013,2]
[353879192,1740108656741,-535.78,0.00015013,2]
[353879193,1740108656750,-838.68,0.00015013,2]
[353879194,1740108656760,-500.0,0.00015013,2]
[353879195,1740108656770,-518.65,0.00015013,2]
[353879196,1740108656780,-2041.33,0.00015013,2]
[353879197,1740108656789,-1636.13,0.00015013,2]
[353879198,1740108656799,-500.0,0.00015013,2]
[353879199,1740108656808,-4589.01,0.00015013,2]
[353879200,1740108656818,-584.08,0.00015013,2]
[353879201,1740108656827,-1616.94,0.00015013,2]
[353879202,1740108656837,-1442.95,0.00015013,2]
[353879203,1740108656846,-500.0,0.00015013,2]
[353879204,1740108656855,-1864.66,0.00015013,2]
[353879205,1740108656864,-709.19,0.00015013,2]
[353879206,1740108656874,-500.0,0.00015013,2]
[353879207,1740108656883,-150.305,0.00015016,2]
[353879208,1740108656892,-1969.0,0.00015016,2]
[353879209,1740108656902,-538.0,0.00015016,2]
[353879210,1740108656911,-2288.0,0.00015016,2]
[353879211,1740108656921,-396.0,0.00015016,2]
[353879212,1740108656930,-22626.47802629,0.00015026,2]
[353879213,1740108656939,-1020.51680426,0.00015072,2]
[353879214,1740108656949,-160.804693,0.00015072,6]
[353879215,1740108656958,-996.48,0.00015095,2]
[353879216,1740108656967,-500.0,0.00015095,2]
[353879217,1740108656977,-611.56,0.00015095,2]
[353879218,1740108656987,-782.52,0.00015095,2]
[353879219,1740108656996,-500.0,0.00015095,2]
[353879220,1740108657006,-500.0,0.00015095,2]
[353879221,1740108657015,-203.408503,0.00015095,2]
[353879222,1740108657026,-924.65,0.00015095,2]
[353879223,1740108657035,-562.95,0.00015095,2]
[353879224,1740108657046,-500.0,0.00015095,2]
[353879225,1740108657056,-815.85,0.00015095,2]
[353879226,1740108657066,-500.0,0.00015095,2]
[353879227,1740108657075,-690.17,0.00015095,2]
[353879228,1740108657085,-616.17,0.00015095,2]
[353879229,1740108657094,-500.0,0.00015095,2]
[353879230,1740108657103,-14084.38,0.00015095,2]
[353879231,1740108657113,-2002.51,0.00015095,2]
[353879232,1740108657123,-614.74,0.00015095,2]
[353879233,1740108657133,-500.0,0.00015095,2]
[353879234,1740108657143,-1658.62,0.00015095,2]
[353879235,1740108657152,-1964.65,0.00015095,2]
[353879236,1740108657162,-1132.84,0.00015095,2]
[353879237,1740108657172,-6657.01,0.00015095,2]
[353879238,1740108657181,-1063.8,0.00015095,2]
[353879239,1740108657191,-899.06,0.00015095,2]
[353879240,1740108657200,-2965.06,0.00015095,2]
[353879241,1740108657210,-1893.75,0.00015095,2]
[353879242,1740108657220,-12368.39,0.00015095,2]
[353879243,1740108657230,-29817.62,0.00015095,2]
[353879244,1740108657239,-1155.97,0.00015095,2]
[353879245,1740108657248,-579.65,0.00015095,2]
[353879246,1740108657258,-2626.88,0.00015095,2]
[353879247,1740108657268,-1498.22,0.00015095,2]
[353879248,1740108657278,-915.53,0.00015095,2]
[353879249,1740108657287,-5183.19,0.00015095,2]
[353879250,1740108657296,-1107.5,0.00015095,2]
[353879251,1740108657305,-950.54,0.00015095,2]
[353879252,1740108657314,-500.0,0.00015095,2]
[353879253,1740108657324,-2828.99,0.00015095,2]
[353879254,1740108657333,-2987.19,0.00015095,2]
[353879255,1740108657342,-1569.7,0.00015095,2]
[353879256,1740108657352,-712.21,0.00015095,2]
[353879257,1740108657362,-702.91,0.00015095,2]
[353879258,1740108657371,-1013.92,0.00015095,2]
[353879259,1740108657380,-535.78,0.00015095,2]
[353879260,1740108657390,-838.68,0.00015095,2]
[353879261,1740108657399,-500.0,0.00015095,2]
[353879262,1740108657408,-518.65,0.00015095,2]
[353879263,1740108657417,-2041.33,0.00015095,2]
[353879264,1740108657426,-1636.13,0.00015095,2]
[353879265,1740108657436,-500.0,0.00015095,2]
[353879266,1740108657445,-4589.01,0.00015095,2]
[353879267,1740108657455,-584.08,0.00015095,2]
[353879268,1740108657464,-1616.94,0.00015095,2]
[353879269,1740108657473,-1442.95,0.00015095,2]
[353879270,1740108657483,-500.0,0.00015095,2]
[353879271,1740108657492,-1864.66,0.00015095,2]
[353879272,1740108657501,-709.19,0.00015095,2]
[353879273,1740108657511,-500.0,0.00015095,2]
[353879274,1740108657520,-2000.0,0.000151,2]
[353879275,1740108657532,-151.0,0.000151,2]
[353879276,1740108657541,-189.0,0.000151,2]
[353879277,1740108657551,-623.0,0.000151,2]
[353879278,1740108657560,-160.0,0.0001513,7]
[353879279,1740108657571,-160.67066306,0.0001513,5]
[353879280,1740108657581,-160.804693,0.0001513,6]
[353879281,1740108657590,-6274.13616665,0.00015151,2]
[353879285,1740109105789,380.0,9.041e-05,2]
[353879288,1740109659473,370.0,0.00019,120]
[353879938,1740109838337,-378.0,0.00012,2]
[353879940,1740109838347,-192.6132493,0.00012898,2]
[353879942,1740109838356,-805.70328122,0.00013495,2]
[353879944,1740109838365,-174.12542057,0.00013598,2]
[353879945,1740109838374,-300.0,0.00013697,2]
[353879946,1740109838384,-500.0,0.00013698,2]
[353879947,1740109838394,-500.59182267,0.00013698,2]
[353879948,1740109838414,-501.90517466,0.00013698,2]
[353879949,1740109838424,-500.38466599,0.00013698,2]
[353879950,1740109838434,-542.91681949,0.00013698,2]
[353879951,1740109838443,-500.75311462,0.00013698,2]
[353879953,1740109838452,-266.71766763,0.00013698,2]
[353879954,1740109838464,-500.0,0.00013698,2]
[353879955,1740109838474,-500.0,0.00013698,2]
[353879956,1740109838483,-500.0,0.00013698,2]
[353879957,1740109838493,-500.0,0.00013698,2]
[353879958,1740109838503,-500.0,0.00013698,2]
[353879960,1740109838512,-500.0,0.00013698,2]
[353879962,1740109838522,-505.14736578,0.00013698,2]
[353879964,1740109838532,-500.0,0.00013698,2]
[353879966,1740109838542,-500.94054936,0.00013698,2]
[353879968,1740109838551,-539.06600983,0.00013698,2]
[353879970,1740109838561,-319.23557379,0.00013698,2]
[353879972,1740109838570,-501.20063397,0.00013698,2]
[353879974,1740109838580,-501.94886952,0.00013698,2]
[353879976,1740109838589,-500.0,0.00013698,2]
[353879979,1740109838599,-500.96050159,0.00013698,2]
[353879981,1740109838608,-300.6476815,0.00013698,2]
[353879983,1740109838618,-500.0,0.00013698,2]
[353879985,1740109838629,-210.0944019,0.00013698,2]
[353879987,1740109838639,-500.0,0.00013698,2]
[353879989,1740109838648,-500.0,0.00013698,2]
[353879991,1740109838657,-500.0,0.00013698,2]
[353879993,1740109838667,-500.0,0.00013698,2]
[353879995,1740109838676,-1148.74,0.00013698,2]
[353879997,1740109838686,-500.0,0.00013698,2]
[353879999,1740109838695,-503.89516596,0.00013698,2]
[353880001,1740109838705,-501.10152351,0.00013698,2]
[353880003,1740109838714,-501.28230942,0.00013698,2]
[353880005,1740109838724,-500.0,0.00013698,2]
[353880007,1740109838733,-500.0,0.00013698,2]
[353880009,1740109838743,-500.0,0.00013698,2]
[353880011,1740109838752,-501.79654225,0.00013698,2]
[353880013,1740109838762,-500.0,0.00013698,2]
[353880015,1740109838771,-500.0,0.00013698,2]
[353880017,1740109838781,-500.0,0.00013698,2]
[353880019,1740109838791,-500.0,0.00013698,2]
[353880021,1740109838800,-500.0,0.00013698,2]
[353880023,1740109838811,-537.35,0.00013698,2]
[353880025,1740109838820,-500.0,0.00013698,2]
[353880027,1740109838829,-500.0,0.00013698,2]
[353880029,1740109838840,-500.0,0.00013698,2]
[353880031,1740109838849,-500.0,0.00013698,2]
[353880033,1740109838859,-651.44,0.00013698,2]
[353880035,1740109838868,-500.0,0.00013698,2]
[353880037,1740109838878,-500.0,0.00013698,2]
[353880039,1740109838887,-500.0,0.00013698,2]
[353880041,1740109838896,-500.0,0.00013698,2]
[353880044,1740109838906,-500.0,0.00013698,2]
[353880046,1740109838916,-500.0,0.00013698,2]
[353880048,1740109838925,-500.0,0.00013698,2]
[353880050,1740109838938,-376.9413525,0.00013698,2]
[353880052,1740109838948,-500.0,0.00013698,2]
[353880054,1740109838959,-704.46,0.00013698,2]
[353880056,1740109838968,-500.53623272,0.00013698,2]
[353880058,1740109838978,-502.84438684,0.00013698,2]
[353880059,1740109838987,-502.34248952,0.00013698,2]
[353880061,1740109838997,-500.0,0.00013698,2]
[353880063,1740109839007,-712.9,0.00013698,2]
[353880065,1740109839016,-500.0,0.00013698,2]
[353880067,1740109839026,-500.0,0.00013698,2]
[353880070,1740109839037,-291.47433211,0.00013698,2]
[353880072,1740109839047,-500.0,0.00013698,2]
[353880074,1740109839057,-491.74280467,0.00013698,2]
[353880076,1740109839066,-500.0,0.00013698,2]
[353880078,1740109839076,-500.0,0.00013698,2]
[353880080,1740109839086,-354.03181598,0.00013698,2]
[353880082,1740109839096,-500.0,0.00013698,2]
[353880084,1740109839105,-517.17,0.00013698,2]
[353880086,1740109839115,-500.0,0.00013698,2]
[353880088,1740109839125,-500.0,0.00013698,2]
[353880090,1740109839134,-500.0,0.00013698,2]
[353880092,1740109839143,-507.40101598,0.00013698,2]
[353880094,1740109839153,-500.0,0.00013698,2]
[353880096,1740109839162,-500.0,0.00013698,2]
[353880098,1740109839172,-500.0,0.00013698,2]
[353880100,1740109839181,-500.0,0.00013698,2]
[353880102,1740109839191,-500.0,0.00013698,2]
[353880104,1740109839201,-500.0,0.00013698,2]
[353880106,1740109839210,-500.0,0.00013698,2]
[353880108,1740109839219,-500.0,0.00013698,2]
[353880110,1740109839228,-500.0,0.00013698,2]
[353880112,1740109839238,-500.0,0.00013698,2]
[353880114,1740109839247,-500.0,0.00013698,2]
[353880116,1740109839259,-11112.07,0.00013698,2]
[353880118,1740109839269,-501.90073531,0.00013698,2]
[353880120,1740109839280,-500.0,0.00013698,2]
[353880122,1740109839289,-501.92013995,0.00013698,2]
[353880124,1740109839299,-501.14469594,0.00013698,2]
[353880126,1740109839308,-1373.5,0.00013698,2]
[353880128,1740109839318,-500.0,0.00013698,2]
[353880130,1740109839328,-4992.75,0.00013698,2]
[353880132,1740109839338,-500.0,0.00013698,2]
[353880135,1740109839347,-1556.6,0.00013698,2]
[353880137,1740109839357,-500.0,0.00013698,2]
[353880139,1740109839366,-500.0,0.00013698,2]
[353880141,1740109839375,-1532.86,0.00013698,2]
[353880143,1740109839385,-2223.79,0.00013698,2]
[353880145,1740109839395,-500.0,0.00013698,2]
[353880147,1740109839405,-897.56,0.00013698,2]
[353880149,1740109839414,-708.34,0.00013698,2]
[353880151,1740109839423,-500.0,0.00013698,2]
[353880153,1740109839433,-797.85,0.00013698,2]
[353880155,1740109839443,-500.0,0.00013698,2]
[353880157,1740109839452,-500.0,0.00013698,2]
[353880159,1740109839461,-22363.22,0.00013698,2]
[353880161,1740109839472,-500.0,0.00013698,2]
[353880163,1740109839481,-1420.31,0.00013698,2]
[353880165,1740109839491,-1123.66,0.00013698,2]
[353880167,1740109839500,-712.91,0.00013698,2]
[353880169,1740109839509,-866.97,0.00013698,2]
[353880171,1740109839519,-500.0,0.00013698,2]
[353880173,1740109839529,-9276.3,0.00013698,2]
[353880175,1740109839539,-696.03543463,0.00013698,2]
[353880178,1740109839555,-1274.12456537,0.00013698,2]
[353880180,1740109839564,-830.62,0.00013698,2]
[353880182,1740109839574,-3887.39,0.00013698,2]
[353880184,1740109839584,-534.15,0.00013698,2]
[353880186,1740109839593,-686.65,0.00013698,2]
[353880188,1740109839603,-2121.74,0.00013698,2]
[353880190,1740109839613,-500.0,0.00013698,2]
[353880192,1740109839623,-2240.4,0.00013698,2]
[353880194,1740109839632,-1177.27,0.00013698,2]
[353880213,1740109839792,-500.0,0.00013698,2]
[353880215,1740109839805,-500.0,0.00013698,2]
[353880217,1740109839815,-760.44,0.00013698,2]
[353880219,1740109839825,-500.0,0.00013698,2]
[353880221,1740109839834,-527.18,0.00013698,2]
[353880223,1740109839843,-629.01,0.00013698,2]
[353880225,1740109839853,-500.0,0.00013698,2]
[353880227,1740109839863,-500.0,0.00013698,2]
[353880229,1740109839872,-1212.7,0.00013698,2]
[353880231,1740109839882,-1227.1,0.00013698,2]